bitfinex-derivatives/quotes_SOLF0:USTF0_20250117
["timestamp","ask_amount","ask_price","bid_price","bid_amount"]
[1737136542594,64.35477091,216.63,216.49,18.02877081]
[1737136542793,64.35477091,216.63,216.53,4.6166]
[1737136542991,64.35477091,216.63,216.49,18.02877081]
[1737136543198,64.35477091,216.63,216.49,18.00877062]
[1737136543397,64.35477091,216.63,216.58,4.6155]
[1737136543599,64.35477091,216.63,216.49,8.38]
[1737136544086,4.6152,216.6,216.49,8.38]
[1737136544285,4.6152,216.6,216.46,115.71717722]
[1737136544488,4.6152,216.6,216.54,4.6164]
[1737136544684,4.6152,216.6,216.44,37.69717722]
[1737136545394,29.35717722,216.62,216.41,86.38]
[1737136546099,29.35717722,216.58,216.41,86.38]
[1737136546591,29.35717722,216.54,216.41,86.38]
[1737136547296,4.6173,216.5,216.41,86.38]
[1737136547795,4.6173,216.5,216.45,4.6183]
[1737136548697,29.35717722,216.54,216.45,4.6183]
[1737136548897,2.23863612,216.53,216.45,4.6183]
[1737136549090,2.23863612,216.52,216.42,6.39044856]
[1737136549287,2.23863612,216.51,216.42,6.39044856]
[1737136549598,29.35717722,216.54,216.41,86.38]
[1737136549599,2.23863612,216.5,216.41,86.38]
[1737136549788,2.23863612,216.49,216.41,86.38]
[1737136549993,2.23863612,216.48,216.41,86.38]
[1737136550289,2.23863612,216.47,216.41,86.38]
[1737136550492,29.35717722,216.58,216.41,86.38]
[1737136550493,2.23863612,216.46,216.41,86.38]
[1737136550698,2.23863612,216.45,216.44,4.6185]
[1737136550897,29.35717722,216.58,216.41,86.38]
[1737136551289,2.976,216.65,216.41,86.38]
[1737136551290,29.35717722,216.6,216.41,86.38]
[1737136552791,4.6163,216.55,216.41,86.38]
[1737136552994,29.35717722,216.56,216.41,86.38]
[1737136553900,4.6164,216.54,216.49,4.6174]
[1737136554399,29.35717722,216.56,216.41,86.38]
[1737136555294,33.97317722,216.56,216.51,4.6169]
[1737136556403,33.97317722,216.56,216.51,4.617]
[1737136556592,33.97317722,216.56,216.41,86.38]
[1737136556593,29.35717722,216.6,216.43,29.35717722]
[1737136556992,4.6155,216.59,216.43,29.35717722]
[1737136557197,29.35717722,216.6,216.43,29.35717722]
[1737136557399,4.6163,216.55,216.49,4.6173]
[1737136557599,29.35717722,216.56,216.39,1.5618]
[1737136558199,4.6167,216.53,216.47,4.6179]
[1737136558398,29.35717722,216.56,216.47,4.6179]
[1737136558598,29.35717722,216.56,216.39,15.3618]
[1737136558802,33.97337722,216.56,216.39,15.3618]
[1737136559797,29.35717722,216.6,216.51,4.6169]
[1737136560793,29.35717722,216.6,216.52,4.6168]
[1737136561204,29.36806766,216.61,216.52,4.6168]
[1737136561399,29.36806766,216.61,216.53,4.6165]
[1737136562098,4.6156,216.58,216.53,4.6165]
[1737136562293,29.36806766,216.61,216.53,4.6165]
[1737136562497,4.6154,216.59,216.53,4.6165]
[1737136562694,30.81236766,216.65,216.46,29.36806766]
[1737136562898,2.22140672,216.64,216.46,29.36806766]
[1737136563102,2.22140672,216.63,216.46,29.36806766]
[1737136563302,4.6151,216.61,216.55,4.616]
[1737136563507,2.22140672,216.6,216.55,4.616]
[1737136563706,2.22140672,216.59,216.55,4.616]
[1737136563897,2.22140672,216.58,216.57,4.6156]
[1737136564300,2.22140672,216.64,216.47,18.06573432]
[1737136564500,4.6152,216.6,216.54,4.6162]
[1737136564801,2.22140672,216.59,216.47,18.06573432]
[1737136565104,2.22146825,216.58,216.47,18.06573432]
[1737136565300,2.22146825,216.57,216.47,18.06573432]
[1737136565598,18.06573432,216.65,216.47,18.06573432]
[1737136565803,2.22164362,216.64,216.47,31.86573432]
[1737136566002,2.22164362,216.63,216.47,31.86573432]
[1737136566206,2.22164362,216.62,216.47,33.44853432]
[1737136566403,2.22164362,216.61,216.47,33.44853432]
[1737136566704,2.22164362,216.6,216.47,33.44853432]
[1737136566901,2.22164362,216.59,216.47,33.44853432]
[1737136567204,18.06573432,216.69,216.51,18.06573432]
[1737136567401,4.6145,216.63,216.57,4.6158]
[1737136567602,18.06573432,216.65,216.52,7.78]
[1737136568006,4.6152,216.6,216.55,4.616]
[1737136568203,18.06573432,216.65,216.52,7.78]
[1737136568507,4.6149,216.62,216.55,4.6162]
[1737136568803,18.06573432,216.61,216.4,18.06573432]
[1737136569311,18.06573432,216.57,216.4,18.06573432]
[1737136569807,4.6171,216.52,216.45,4.6183]
[1737136570006,18.06573432,216.57,216.4,18.06573432]
[1737136570206,4.6171,216.51,216.46,91.0581]
[1737136571007,4.6168,216.52,216.46,91.0581]
[1737136571707,4.13444367,216.52,216.46,91.0581]
[1737136572409,18.06573432,216.57,216.48,4.6177]
[1737136573311,4.6168,216.53,216.48,4.6177]
[1737136573501,18.06573432,216.57,216.49,4.6173]
[1737136574510,18.06573432,216.57,216.46,86.44]
[1737136574805,4.6162,216.56,216.46,86.44]
[1737136575914,4.6163,216.55,216.5,4.6172]
[1737136576511,4.6163,216.55,216.46,86.44]
[1737136576708,18.06573432,216.61,216.46,86.44]
[1737136577310,4.6164,216.55,216.49,4.6173]
[1737136578215,18.06573432,216.61,216.46,86.44]
[1737136578414,4.6169,216.52,216.46,86.44]
[1737136579212,2.1870261,216.51,216.46,86.44]
[1737136579515,4.6175,216.49,216.46,86.44]
[1737136579710,18.06573432,216.57,216.46,86.44]
[1737136579917,2.1893331,216.56,216.46,86.44]
[1737136580216,4.6175,216.5,216.46,86.44]
[1737136580515,2.1893331,216.49,216.46,86.44]
[1737136580715,2.1893331,216.48,216.46,86.44]
[1737136581011,2.1893331,216.47,216.46,91.0581]
[1737136581215,4.6173,216.51,216.46,91.0581]
[1737136581411,2.1893331,216.5,216.46,91.0581]
[1737136581615,2.1893331,216.49,216.46,91.0581]
[1737136581815,2.1893331,216.48,216.46,91.0581]
[1737136582015,2.1893331,216.47,216.46,91.0581]
[1737136583318,2.1893331,216.47,216.46,86.44]
[1737136584321,0.1893331,216.47,216.46,86.44]
[1737136584815,0.1893331,216.47,216.46,91.0581]
[1737136585019,3.31e-05,216.47,216.46,91.0581]
[1737136588118,4.6162,216.55,216.46,86.44]
[1737136588320,4.6162,216.55,216.5,4.6172]
[1737136589427,4.6147,216.63,216.53,4.6165]
[1737136589625,18.06573432,216.67,216.49,18.06573432]
[1737136590529,18.06573432,216.63,216.47,7.3]
[1737136591227,18.06573432,216.55,216.46,86.44]
[1737136591632,4.6177,216.48,216.46,86.44]
[1737136591933,18.06573432,216.55,216.46,86.44]
[1737136592432,1.4771,216.54,216.46,86.44]
[1737136592830,4.6177,216.48,216.46,86.44]
[1737136593734,1.4771,216.54,216.46,86.44]
[1737136594338,3.0094,216.54,216.46,86.44]
[1737136594534,4.6177,216.49,216.46,86.44]
[1737136594743,4.6177,216.49,216.44,4.6185]
[1737136595140,4.6177,216.49,216.4,1.5418]
[1737136595441,4.6177,216.49,216.43,4.6186]
[1737136595633,4.617,216.52,216.4,1.5418]
[1737136595838,3.0094,216.54,216.4,1.5418]
[1737136596442,4.6171,216.51,216.45,4.6182]
[1737136596644,4.6171,216.51,216.4,1.5418]
[1737136596939,2.17497224,216.5,216.4,1.5418]
[1737136597139,2.17497224,216.49,216.45,4.6183]
[1737136597339,2.17497224,216.48,216.45,4.6183]
[1737136597537,2.17497224,216.47,216.45,4.6183]
[1737136597731,2.17497224,216.46,216.4,19.60753432]
[1737136597937,2.17497224,216.45,216.43,4.6186]
[1737136598137,2.17497224,216.44,216.4,19.60753432]
[1737136598337,3.0094,216.54,216.4,19.60753432]
[1737136598738,1.4771,216.54,216.4,19.60753432]
[1737136598939,1.4771,216.54,216.44,18.06573432]
[1737136599139,4.6162,216.56,216.51,4.617]
[1737136599442,4.6162,216.56,216.44,18.06573432]
[1737136599939,4.6162,216.56,216.51,4.617]
[1737136600236,1.4985,216.61,216.44,18.06573432]
[1737136601140,1.4985,216.61,216.44,31.86573432]
[1737136602040,4.6161,216.56,216.51,4.617]
[1737136602740,4.6153,216.6,216.55,4.6162]
[1737136602940,1.4985,216.61,216.5,7.06]
[1737136603136,56.0,216.6,216.26,6.39044856]
[1737136603340,70.0,216.59,216.29,6.39044856]
[1737136603639,18.10174611,216.45,216.29,6.39044856]
[1737136603836,15.92899509,216.49,216.38,4.6197]
[1737136604140,4.6175,216.49,216.35,13.8]
[1737136604833,15.92829509,216.53,216.41,4.6191]
[1737136605338,4.6168,216.53,216.42,4.6189]
[1737136605734,11.30204817,216.54,216.36,25.10204817]
[1737136605941,18.07855101,216.59,216.47,4.6177]
[1737136606341,4.6159,216.57,216.47,4.6177]
[1737136608541,18.07855101,216.55,216.37,18.07855101]
[1737136608736,18.07855101,216.55,216.33,18.07855101]
[1737136608938,18.07855101,216.55,216.34,7.44]
[1737136609137,18.07855101,216.55,216.43,4.6187]
[1737136609446,18.07855101,216.55,216.37,18.07855101]
[1737136609744,22.69495101,216.55,216.45,4.6182]
[1737136610043,22.69495101,216.55,216.38,13.8]
[1737136610245,18.07855101,216.59,216.47,4.6179]
[1737136610445,18.07855101,216.59,216.34,7.44]
[1737136610446,18.07855101,216.59,216.42,13.8]
[1737136610639,18.07855101,216.59,216.43,2.972]
[1737136611145,18.07855101,216.59,216.43,16.772]
[1737136611643,4.6157,216.58,216.49,4.6174]
[1737136612245,18.07855101,216.59,216.49,4.6174]
[1737136613243,4.6158,216.57,216.49,4.6174]
[1737136613845,4.6158,216.57,216.43,16.772]
[1737136614450,4.6158,216.57,216.5,4.6172]
[1737136614746,1.4985,216.61,216.46,21.12]
[1737136615447,4.6159,216.57,216.46,21.12]
[1737136615647,4.6159,216.57,216.51,4.617]
[1737136616851,4.6165,216.54,216.47,4.6178]
[1737136617050,18.07855101,216.59,216.46,7.32]
[1737136617247,1.4985,216.61,216.46,7.32]
[1737136617452,4.6158,216.58,216.51,4.6169]
[1737136617652,1.4985,216.61,216.46,21.12]
[1737136618052,4.6154,216.59,216.5,4.6172]
[1737136618249,4.6154,216.59,216.46,21.12]
[1737136618653,4.6154,216.59,216.53,4.6166]
[1737136619848,4.6154,216.59,216.54,4.6164]
[1737136620555,4.6152,216.6,216.54,4.6164]
[1737136620751,4.6152,216.6,216.48,21.0]
[1737136621047,18.07855101,216.63,216.48,21.0]
[1737136621249,4.6149,216.61,216.48,21.0]
[1737136621645,1.4667,216.68,216.48,21.0]
[1737136621646,4.6148,216.62,216.57,4.6157]
[1737136621850,18.07855101,216.67,216.5,13.8]
[1737136622353,4.6146,216.63,216.57,4.6157]
[1737136622654,18.07855101,216.63,216.48,7.2]
[1737136622854,4.6156,216.58,216.53,4.6166]
[1737136623258,18.07855101,216.63,216.48,7.2]
[1737136623456,18.07855101,216.63,216.44,18.07855101]
[1737136623653,18.07855101,216.59,216.45,7.16]
[1737136623952,4.6168,216.53,216.47,4.6177]
[1737136625057,4.6168,216.53,216.48,4.6177]
[1737136625658,18.07855101,216.59,216.48,4.6177]
[1737136625860,4.6164,216.55,216.48,4.6177]
[1737136626951,18.07855101,216.59,216.43,2.972]
[1737136627151,18.07855101,216.51,216.42,86.44]
[1737136627552,4.6181,216.47,216.42,86.44]
[1737136627958,18.07855101,216.51,216.42,86.44]
[1737136628261,18.07855101,216.51,216.33,1.4569]
[1737136628655,4.6184,216.45,216.38,4.6197]
[1737136628857,4.6184,216.45,216.33,18.07855101]
[1737136629353,4.6184,216.45,216.33,18.08950245]
[1737136629760,11.30439268,216.5,216.31,22.4084]
[1737136630061,11.30439268,216.5,216.36,11.30439268]
[1737136630561,11.30439268,216.5,216.39,11.30439268]
[1737136630960,4.6177,216.48,216.42,4.6189]
[1737136631266,11.30439268,216.5,216.36,11.30439268]
[1737136631863,4.6184,216.45,216.4,4.6194]
[1737136632166,11.30439268,216.5,216.4,4.6194]
[1737136632959,4.6179,216.47,216.4,4.6194]
[1737136633165,11.30439268,216.5,216.36,11.30439268]
[1737136633461,11.30439268,216.53,216.39,11.30439268]
[1737136633665,4.6171,216.51,216.45,4.6181]
[1737136633964,11.30439268,216.53,216.45,4.6181]
[1737136634267,4.6173,216.5,216.45,4.6181]
[1737136635065,4.6179,216.48,216.42,11.30439268]
[1737136635266,11.30439268,216.53,216.39,11.30439268]
[1737136636765,11.30439268,216.5,216.36,11.30439268]
[1737136637269,11.30439268,216.5,216.4,4.6193]
[1737136637270,4.6184,216.45,216.4,4.6193]
[1737136638373,4.6181,216.47,216.41,4.6191]
[1737136638571,11.30439268,216.5,216.41,4.6191]
[1737136639382,4.6183,216.46,216.41,4.6191]
[1737136639577,4.6183,216.46,216.42,4.6189]
[1737136640473,11.30439268,216.5,216.42,4.6189]
[1737136640973,11.30439268,216.53,216.42,4.6189]
[1737136641177,4.6183,216.46,216.42,4.6189]
[1737136642376,11.30439268,216.53,216.38,11.30439268]
[1737136642573,4.6179,216.47,216.43,4.6187]
[1737136643373,11.30439268,216.53,216.43,4.6187]
[1737136643571,4.6179,216.47,216.43,4.6187]
[1737136643775,11.30439268,216.53,216.43,4.6187]
[1737136643977,4.6178,216.48,216.44,4.6185]
[1737136644280,11.30439268,216.53,216.4,11.30439268]
[1737136645178,4.6179,216.47,216.4,11.30439268]
[1737136645680,4.6179,216.47,216.42,4.619]
[1737136646072,4.6179,216.47,216.4,11.30439268]
[1737136646678,4.6177,216.48,216.4,11.30439268]
[1737136648074,4.6177,216.48,216.43,4.6187]
[1737136648370,4.6182,216.46,216.4,11.30439268]
[1737136648879,4.618,216.47,216.42,4.619]
[1737136649380,11.30439268,216.55,216.4,11.30439268]
[1737136649580,4.6174,216.5,216.45,4.6183]
[1737136649781,7.07376984,216.53,216.46,7.07376984]
[1737136649979,4.6173,216.5,216.46,7.07376984]
[1737136650574,1.5223,216.57,216.48,11.69136984]
[1737136650777,7.07376984,216.56,216.48,11.69136984]
[1737136651876,8.59606984,216.57,216.5,7.07376984]
[1737136652078,3.1023,216.58,216.52,7.07376984]
[1737136652279,4.6163,216.55,216.52,7.07376984]
[1737136652480,10.17606984,216.58,216.52,7.07376984]
[1737136652674,1.5549,216.58,216.52,7.07376984]
[1737136652879,4.6156,216.58,216.54,4.6164]
[1737136653075,4.6156,216.58,216.54,11.69016984]
[1737136653276,11.93266984,216.64,216.56,7.07376984]
[1737136653479,4.6145,216.63,216.59,7.06679467]
[1737136653884,4.6145,216.63,216.56,11.03956316]
[1737136655084,4.6145,216.63,216.57,4.6158]
[1737136657089,4.6145,216.63,216.58,4.6155]
[1737136662787,4.6145,216.63,216.56,11.03956316]
[1737136662986,11.03956316,216.69,216.59,4.6153]
[1737136664184,4.6143,216.64,216.59,4.6153]
[1737136667685,11.03956316,216.66,216.53,11.03956316]
[1737136667886,2.5004,216.72,216.53,11.03956316]
[1737136668084,11.03956316,216.69,216.53,11.03956316]
[1737136668288,4.6147,216.63,216.58,4.6155]
[1737136668887,4.6147,216.63,216.59,4.6153]
[1737136671291,4.6143,216.64,216.59,4.6153]
[1737136676294,4.6137,216.67,216.63,4.6143]
[1737136676494,4.6137,216.67,216.64,7.06558651]
[1737136678098,7.06558651,216.71,216.64,7.06558651]
[1737136678300,4.6135,216.68,216.64,7.06558651]
[1737136679101,4.6135,216.68,216.64,11.67968651]
[1737136679307,2.5004,216.72,216.66,7.06558651]
[1737136679600,7.06558651,216.76,216.7,7.06558651]
[1737136679802,4.613,216.71,216.68,7.06558651]
[1737136680203,7.06558651,216.7,216.63,7.06558651]
[1737136680703,7.06558651,216.7,216.62,4.6145]
[1737136680903,7.06558651,216.7,216.62,11.68008651]
[1737136681103,4.6137,216.67,216.62,11.68008651]
[1737136682203,7.06558651,216.63,216.55,7.06558651]
[1737136682404,7.06558651,216.61,216.55,7.06558651]
[1737136682801,7.06558651,216.63,216.57,7.06558651]
[1737136683102,7.06558651,216.64,216.57,7.06558651]
[1737136683401,4.6152,216.6,216.57,7.06558651]
[1737136684502,10.23578651,216.66,216.59,7.06558651]
[1737136684911,4.6149,216.62,216.59,7.06558651]
[1737136685114,7.06558651,216.64,216.57,7.06558651]
[1737136685912,7.06558651,216.6,216.51,7.06558651]
[1737136686416,4.6162,216.56,216.49,4.6173]
[1737136686616,4.6162,216.56,216.47,86.46]
[1737136686617,7.06558651,216.56,216.47,86.46]
[1737136686817,7.06558651,216.54,216.47,93.52558651]
[1737136687009,2.9821,216.63,216.51,7.06558651]
[1737136687213,7.06558651,216.61,216.53,7.06558651]
[1737136687411,4.6158,216.58,216.53,7.06558651]
[1737136688015,4.6158,216.57,216.53,7.06558651]
[1737136688216,2.9821,216.63,216.53,7.06558651]
[1737136688415,7.06558651,216.61,216.53,7.06558651]
[1737136689716,4.6156,216.59,216.55,7.06558651]
[1737136691924,2.9821,216.63,216.55,7.06558651]
[1737136692117,4.6151,216.61,216.55,7.06558651]
[1737136692420,4.6151,216.61,216.55,11.68178651]
[1737136693419,4.6147,216.62,216.57,7.06558651]
[1737136694119,4.6147,216.62,216.57,11.68138651]
[1737136695218,3.1702,216.66,216.57,7.06558651]
[1737136695423,4.6146,216.63,216.59,4.6153]
[1737136696827,4.6143,216.64,216.6,4.6151]
[1737136697028,10.23578651,216.66,216.57,7.06558651]
[1737136697321,7.06558651,216.66,216.57,7.06558651]
[1737136697622,3.0997,216.72,216.61,7.06558651]
[1737136697926,7.06558651,216.69,216.61,7.06558651]
[1737136698625,3.0997,216.72,216.65,7.06558651]
[1737136699126,4.6133,216.69,216.65,7.06558651]
[1737136699827,7.06558651,216.71,216.64,7.06558651]
[1737136700021,7.06558651,216.73,216.64,7.06558651]
[1737136700222,4.6134,216.69,216.64,11.67988651]
[1737136700617,7.06558651,216.66,216.36,19.23003977]
[1737136700821,3.0376,216.65,216.49,7.06558651]
[1737136701017,7.06558651,216.59,216.49,7.06558651]
[1737136702225,7.06558651,216.57,216.43,6.2]
[1737136702529,7.06558651,216.55,216.47,7.06558651]
[1737136702729,4.6166,216.53,216.47,7.06558651]
[1737136703430,3.0376,216.65,216.41,6.18]
[1737136703431,4.6169,216.52,216.41,6.18]
[1737136703725,11.05372134,216.53,216.39,6.0031]
[1737136703929,4.6178,216.48,216.4,4.6192]
[1737136704120,4.6178,216.48,216.39,17.05682134]
[1737136704326,11.05372134,216.53,216.39,17.05682134]
[1737136704524,4.6175,216.5,216.41,4.6191]
[1737136704725,11.05372134,216.53,216.41,4.6191]
[1737136705024,11.05372134,216.53,216.39,17.05682134]
[1737136705225,4.6168,216.53,216.42,11.05372134]
[1737136705624,11.05372134,216.61,216.48,4.6176]
[1737136705827,11.05372134,216.61,216.45,11.05372134]
[1737136706331,4.6162,216.55,216.48,4.6177]
[1737136706525,4.6162,216.55,216.45,11.05372134]
[1737136706526,11.05372134,216.61,216.45,11.05372134]
[1737136706930,11.05372134,216.61,216.47,4.6177]
[1737136708628,4.6164,216.55,216.48,4.6177]
[1737136709436,4.6158,216.58,216.48,4.6177]
[1737136709737,11.05372134,216.61,216.49,4.6175]
[1737136711723,11.05372134,216.61,216.5,4.6171]
[1737136712232,4.6162,216.56,216.5,4.6171]
[1737136712729,4.616,216.57,216.51,4.617]
[1737136713325,4.616,216.56,216.51,4.617]
[1737136715731,11.05372134,216.64,216.48,11.05372134]
[1737136716734,11.05372134,216.64,216.52,4.6168]
[1737136718230,4.6158,216.57,216.52,4.6168]
[1737136718435,4.6158,216.57,216.49,3.072]
[1737136718738,4.6158,216.57,216.53,4.6166]
[1737136724238,4.6157,216.58,216.53,4.6166]
[1737136725835,4.6157,216.58,216.53,11.68570426]
[1737136726943,4.6156,216.58,216.53,11.68570426]
[1737136727143,7.06910426,216.6,216.53,11.68570426]
[1737136727740,4.6158,216.58,216.53,11.68570426]
[1737136728141,4.6158,216.58,216.54,4.6164]
[1737136728340,4.6158,216.58,216.53,7.06910426]
[1737136728941,4.6163,216.55,216.5,3.1912]
[1737136729139,7.06910426,216.56,216.49,10.14110426]
[1737136729748,7.06910426,216.58,216.5,4.6171]
[1737136731045,3.0376,216.65,216.54,7.06910426]
[1737136731246,7.06910426,216.62,216.54,7.06910426]
[1737136731447,7.06910426,216.6,216.52,7.06910426]
[1737136731639,4.6158,216.57,216.53,4.6165]
[1737136733651,3.0376,216.65,216.53,4.6165]
[1737136733848,4.6156,216.58,216.53,4.6165]
[1737136734850,4.6156,216.58,216.49,3.072]
[1737136734851,4.615,216.61,216.56,4.6159]
[1737136735243,4.615,216.61,216.56,11.68500426]
[1737136735448,4.6154,216.59,216.54,11.68540426]
[1737136741456,4.6152,216.6,216.56,7.06910426]
[1737136742151,3.0376,216.65,216.58,7.06910426]
[1737136742357,10.10670426,216.65,216.5,2.9506]
[1737136742557,10.10670426,216.65,216.55,7.06910426]
[1737136742758,10.10670426,216.65,216.55,11.68510426]
[1737136743257,4.6152,216.6,216.55,11.68510426]
[1737136743650,4.6152,216.6,216.55,4.616]
[1737136743957,4.6152,216.6,216.56,7.06910426]
[1737136744157,4.6152,216.6,216.56,11.68500426]
[1737136744460,4.615,216.61,216.56,11.68500426]
[1737136744855,10.10670426,216.65,216.56,4.6159]
[1737136745062,4.6152,216.6,216.56,11.68500426]
[1737136747259,4.6152,216.6,216.49,3.072]
[1737136747260,13.86,216.58,216.27,19.23003977]
[1737136747466,7.06910426,216.54,216.44,7.06910426]
[1737136748067,7.06910426,216.54,216.28,9.0771]
[1737136748068,7.06910426,216.54,216.46,7.06910426]
[1737136748363,7.06910426,216.52,216.36,6.34]
[1737136748560,4.6179,216.47,216.42,7.06910426]
[1737136751467,4.6179,216.47,216.4,4.6194]
[1737136751468,4.6179,216.47,216.44,7.06910426]
[1737136751863,4.6176,216.49,216.46,7.06910426]
[1737136752368,7.06910426,216.51,216.44,7.06910426]
[1737136752866,4.6178,216.48,216.44,7.06910426]
[1737136755266,4.6178,216.48,216.37,3.0345]
[1737136755267,4.6186,216.44,216.37,3.0345]
[1737136755460,7.06910426,216.44,216.37,7.06910426]
[1737136756473,7.06910426,216.4,216.3,5.85779037]
[1737136756769,7.06910426,216.38,216.3,12.92689463]
[1737136756970,6.1266,216.43,216.34,7.06910426]
[1737136757171,7.06910426,216.45,216.3,5.85779037]
[1737136757466,7.06910426,216.45,216.37,7.06910426]
[1737136757671,7.06910426,216.43,216.3,5.85779037]
[1737136757974,9.0738,216.49,216.38,7.06910426]
[1737136757975,4.6192,216.41,216.38,7.06910426]
[1737136758368,7.06910426,216.45,216.38,7.06910426]
[1737136758563,4.6188,216.43,216.38,7.06910426]
[1737136758869,4.6188,216.43,216.3,5.85779037]
[1737136759072,4.6188,216.43,216.38,7.06910426]
[1737136761566,7.06910426,216.39,216.16,13.85]
[1737136761768,7.06910426,216.31,216.24,4.6226]
[1737136761973,7.06910426,216.29,216.22,7.06910426]
[1737136762174,4.6204,216.36,216.25,4.6225]
[1737136762476,4.6204,216.36,216.28,7.06910426]
[1737136762873,4.6204,216.36,216.29,4.6216]
[1737136763275,4.6204,216.36,216.3,7.06910426]
[1737136763475,4.6204,216.36,216.3,11.69060426]
[1737136763680,4.6204,216.36,216.3,4.6215]
[1737136764675,6.0917,216.39,216.23,6.28]
[1737136764676,2.9638,216.39,216.32,4.6209]
[1737136764881,7.06910426,216.38,216.24,7.06910426]
[1737136765180,7.06910426,216.38,216.31,7.06910426]
[1737136765579,7.06910426,216.4,216.24,20.91910426]
[1737136765885,7.06910426,216.38,216.31,7.06910426]
[1737136766082,20.92910426,216.32,216.02,5.85746603]
[1737136766388,7.06910426,216.22,216.15,7.06910426]
[1737136766585,4.6234,216.22,216.17,7.06910426]
[1737136766781,7.06910426,216.41,216.07,7.06910426]
[1737136766782,9.2389,216.4,216.21,7.06910426]
[1737136766982,6.38,216.58,216.35,7.06910426]
[1737136767184,7.06910426,216.39,216.21,86.5]
[1737136767482,7.08348919,216.4,216.31,7.08348919]
[1737136767788,11.06623863,216.44,216.29,11.06623863]
[1737136768683,4.62,216.38,216.29,15.68793863]
[1737136769186,11.06623863,216.44,216.29,15.68793863]
[1737136770685,11.06623863,216.44,216.3,4.6215]
[1737136771393,3.036,216.43,216.3,4.6215]
[1737136771889,3.036,216.43,216.32,11.06623863]
[1737136772489,4.62,216.38,216.32,11.06623863]
[1737136772690,3.036,216.43,216.33,4.6209]
[1737136773493,3.036,216.43,216.32,11.06623863]
[1737136773691,4.6194,216.41,216.35,11.06623863]
[1737136774394,4.6192,216.42,216.35,11.06623863]
[1737136774589,2.9221,216.49,216.35,11.06623863]
[1737136775093,11.06623863,216.53,216.38,11.06623863]
[1737136775493,4.6176,216.49,216.4,4.6194]
[1737136775696,11.06623863,216.53,216.38,11.06623863]
[1737136776294,4.6184,216.46,216.4,4.6194]
[1737136776495,11.06623863,216.53,216.4,4.6194]
[1737136776993,4.6183,216.46,216.4,4.6194]
[1737136777196,11.06623863,216.53,216.4,4.6194]
[1737136777390,4.6175,216.5,216.4,4.6194]
[1737136777690,11.06623863,216.53,216.4,4.6194]
[1737136778192,4.6183,216.46,216.4,4.6194]
[1737136778493,11.06623863,216.53,216.4,4.6194]
[1737136778697,4.6183,216.46,216.4,4.6194]
[1737136778897,11.06623863,216.53,216.4,4.6194]
[1737136779196,4.6175,216.5,216.4,4.6194]
[1737136779493,11.06623863,216.53,216.4,4.6194]
[1737136779791,4.6183,216.46,216.41,4.6192]
[1737136780291,11.06623863,216.53,216.41,4.6192]
[1737136780292,4.6184,216.45,216.41,4.6192]
[1737136780793,4.6184,216.45,216.4,4.6194]
[1737136781196,4.6184,216.45,216.38,11.06623863]
[1737136781395,4.6184,216.45,216.39,4.6196]
[1737136782290,4.6184,216.45,216.38,11.06623863]
[1737136782494,4.6184,216.45,216.4,4.6194]
[1737136782895,11.06623863,216.43,216.27,11.06623863]
[1737136783194,11.06623863,216.43,216.3,11.06623863]
[1737136783997,4.6198,216.39,216.33,4.6207]
[1737136784592,11.06623863,216.43,216.3,11.06623863]
[1737136784796,4.6195,216.4,216.34,4.6207]
[1737136784995,11.06623863,216.46,216.33,11.06623863]
[1737136785193,4.6192,216.42,216.33,11.06623863]
[1737136785595,11.06623863,216.49,216.33,11.06623863]
[1737136786189,11.06623863,216.49,216.36,11.06623863]
[1737136786798,11.06623863,216.49,216.4,4.6194]
[1737136787595,4.6184,216.45,216.4,4.6194]
[1737136789096,4.6182,216.46,216.4,4.6194]
[1737136789795,4.618,216.47,216.41,4.6192]
[1737136790006,4.618,216.47,216.39,11.06623863]
[1737136790198,11.06623863,216.52,216.39,11.06623863]
[1737136791102,4.6178,216.48,216.39,11.06623863]
[1737136791401,17.02843863,216.55,216.39,11.06623863]
[1737136791900,2.9221,216.55,216.42,11.06623863]
[1737136792400,2.9221,216.55,216.45,4.6182]